Cogmind - Beta 13 X1 @@@ ROGUE MODE // 2023.11.05 @ 16:07:20 Player: Cracklepappy Result: Destroyed self with Fusion Bomb Launcher Performance ------------- Evolutions (9) 4500 Regions Visited (30) 6000 Robots Destroyed (655) 3275 Value Destroyed (32747) 32747 Prototype IDs (63) 1260 Alien Tech Used (5) 1000 Bonus (18131) 18131 TOTAL SCORE: 66913 Bonus ------- Triggered High Security 500 High Alert Combat Kills 8039 Follower Combat Kills 1036 Entered Garrisons 200 Used RIF Installer 500 Met Data Miner 300 Triggered Deep Caves Wall 500 Exposed GOLEM Chamber 500 Met Zhirov 300 Found Hidden Lab 3000 Used Core Reset Matrix 3000 Scanned by Researcher 500 Pursued by Intercept 1000 Friendly Fire -1244 Cogmind --------- Core Integrity 0/1600 Matter 143/300 Energy 64/100 System Corruption 21% Temperature Cool (0) Movement Core (50) Location -1/Access Parts ------- > --- POWER (4) -------- (None) > --- PROPULSION (4) --- (None) > --- UTILITY (15) ----- Advanced Signal Interpreter Advanced Hacking Suite > --- WEAPON (3) ------- (None) > --- INVENTORY (5) ---- Experimental Heat Sink Experimental Energy Well (600) HERF Cannon Gravity Flail Peak State ------------ > --- POWER ------------ Assembled Flux Generator Light Quantum Reactor Light Quantum Reactor > --- PROPULSION ------- Advanced Medium Treads Assembled Alloy Leg Assembled Alloy Leg Centrium Leg > --- UTILITY ---------- Assembled Nanovents Assembled Nanovents Assembled Nanovents Assembled Nanovents Assembled Biocell Array Assembled Biocell Array Assembled Suspension Frame Assembled Metafiber Network Assembled Combat Suite Assembled Alloy Armor Assembled Alloy Armor Assembled Alloy Armor Assembled Alloy Armor GOLEM Unit > --- WEAPON ----------- Assembled Focal Cannon Assembled Focal Cannon Assembled Focal Cannon > --- INVENTORY -------- Micro Antimatter Reactor Advanced Medium Treads Graphene Brace GOLEM Unit [Rating: 231] Favorites ----------- Power Assembled Flux Generator Engine Improved Deuterium Engine Power Core Fission Core Reactor Assembled Flux Generator Propulsion Light Treads Treads Light Treads Leg Assembled Alloy Leg Wheel Wheel Hover Unit Cooled Gravmag System Flight Unit Xenon Bombardment Thruster Utility Cargo Storage Unit Device GOLEM Unit Storage Cargo Storage Unit Processor Advanced Targeting Computer Hackware Advanced Hacking Suite Protection Hardened Heavy Armor Plating Weapon Assembled Focal Cannon Energy Gun Gatling Laser Energy Cannon Assembled Focal Cannon Ballistic Gun Heavy Machine Gun Ballistic Cannon Battle Cannon Launcher Rocket Array Special Weapon Mining Laser Impact Weapon Makeshift Hammer Slashing Weapon Power Sword Piercing Weapon Makeshift Spear Build | -11 -10 -10 -10 -8 -8 -7 -7 -7 -7 -6 -6 -6 -6 -6 -6 -6 -6 -5 -5 -5 -5 -5 -4 -4 -4 -4 -3 -3 -2 -1 ------- Run | Jun Mat Min Sub Mat Gar Fac Low Low Dat Pro Fac Was Fac Low Low Zio Dee Pro Fac Upp Upp Zhi Pro Fac Arm Lab Res Tes Res Acc Slots Evolved 18 | . . . . 4 . 2 . . . . 2 . . . . . . . 2 . . . . 2 . . 2 . 2 2 Power 3 | . . . . . . 1 . . . . . . . . . . . . 1 . . . . . . . 1 . . . Propulsion 2 | . . . . 2 . . . . . . . . . . . . . . . . . . . . . . . . . . Utility 12 | . . . . 2 . 1 . . . . 2 . . . . . . . . . . . . 2 . . 1 . 2 2 Weapon 1 | . . . . . . . . . . . . . . . . . . . 1 . . . . . . . . . . . Parts Attached 559 | 7 18 4 20 36 34 17 5 1 . 3 39 11 29 9 5 36 40 . 26 10 11 4 22 20 32 13 20 21 13 53 Power 66 | 1 3 . . 2 1 2 . . . . 4 2 6 1 . 5 1 . 4 . 1 1 . 3 5 3 6 2 4 9 Engine 15 | 1 3 . . 1 1 2 . . . . 1 . 2 1 . 2 . . . . . . . . . . 1 . . . Core 15 | . . . . 1 . . . . . . 3 . 2 . . 3 . . 4 . . . . 2 . . . . . . Reactor 36 | . . . . . . . . . . . . 2 2 . . . 1 . . . 1 1 . 1 5 3 5 2 4 9 Propulsion 90 | 2 2 2 3 9 8 4 . . . . 10 2 2 . . . 4 . . 5 2 . 3 6 4 . 1 4 4 13 Treads 58 | 1 2 2 3 7 7 4 . . . . 9 2 2 . . . 2 . . 1 1 . . 5 4 . 1 3 2 . Leg 22 | . . . . 2 1 . . . . . 1 . . . . . 1 . . 3 1 . 3 1 . . . 1 1 7 Wheel 2 | 1 . . . . . . . . . . . . . . . . 1 . . . . . . . . . . . . . Hover 2 | . . . . . . . . . . . . . . . . . . . . 1 . . . . . . . . 1 . Flight 6 | . . . . . . . . . . . . . . . . . . . . . . . . . . . . . . 6 Utility 228 | 2 1 1 . 7 6 4 . 1 . 3 14 4 15 6 1 16 21 . 19 5 6 2 9 10 20 9 11 11 5 19 Device 100 | 1 . . . 3 2 1 . 1 . 1 1 1 8 3 . 12 9 . 10 5 3 1 2 5 5 3 4 9 1 9 Storage 19 | 1 1 . . . . . . . . . 2 . . 1 . . 2 . 1 . . . 1 1 1 2 4 2 . . Processor 19 | . . . . 1 . . . . . . 1 . 1 . . 1 . . 2 . 1 . 1 1 . . 3 . 3 4 Hackware 15 | . . . . . 1 . . . . . . 1 . . . . . . 1 . . . 1 . 9 . . . 1 1 Protection 75 | . . 1 . 3 3 3 . . . 2 10 2 6 2 1 3 10 . 5 . 2 1 4 3 5 4 . . . 5 Artifact . | . . . . . . . . . . . . . . . . . . . . . . . . . . . . . . . Weapon 175 | 2 12 1 17 18 19 7 5 . . . 11 3 6 2 4 15 14 . 3 . 2 1 10 1 3 1 2 4 . 12 Energy Gun 11 | . . . . . . . 2 . . . 3 . 2 . . . . . . . . . 1 . . . . . . 3 Energy Cannon 46 | . . . 10 4 . 5 2 . . . . 1 . . . 6 5 . . . . 1 6 1 1 1 1 2 . . Ballistic Gun 50 | 2 7 1 2 7 10 . . . . . 5 1 4 1 2 5 1 . . . . . 2 . . . . . . . Ballistic Cannon 7 | . . . . 3 3 . . . . . . . . . . 1 . . . . . . . . . . . . . . Launcher 30 | . 2 . . 2 1 1 1 . . . 1 . . . 2 2 6 . 3 . 1 . . . 2 . 1 2 . 3 Special Weapon 9 | . 3 . 3 . . . . . . . 1 1 . . . . . . . . 1 . . . . . . . . . Impact Weapon 7 | . . . . . . 1 . . . . . . . 1 . 1 2 . . . . . . . . . . . . 2 Slashing Weapon 4 | . . . . . . . . . . . . . . . . . . . . . . . 1 . . . . . . 3 Piercing Weapon 11 | . . . 2 2 5 . . . . . 1 . . . . . . . . . . . . . . . . . . 1 Special Melee Weapon . | . . . . . . . . . . . . . . . . . . . . . . . . . . . . . . . Unidentified Prototypes 31 | . . . . 3 . . . . . 1 4 . . . . 1 5 . . . 1 3 . . 1 5 . 2 1 4 Parts Lost 145 | . 1 . 3 4 11 . . . . 1 6 . 9 . 2 2 5 . 10 3 . . 2 4 2 2 8 17 1 52 Power 19 | . . . . . . . . . . . . . 3 . . . . . 1 . . . . . . . 3 4 . 8 Propulsion 33 | . . . 3 1 5 . . . . . 5 . 1 . . . 2 . 1 3 . . . 1 . . 1 3 . 7 Utility 73 | . . . . 2 2 . . . . 1 1 . 5 . 2 1 3 . 7 . . . 1 3 2 2 4 6 1 30 Weapon 20 | . 1 . . 1 4 . . . . . . . . . . 1 . . 1 . . . 1 . . . . 4 . 7 Highest Loss Streak 21 | . 1 . 1 3 3 . . . . 1 3 . 2 . 1 1 2 . 5 2 . . 1 1 1 2 4 13 1 21 To Critical Strikes 3 | . . . . . . . . . . . . . 1 . . . . . 2 . . . . . . . . . . . Average Slot Usage (%) 82 | . 99 100 99 97 99 99 100 100 100 99 92 65 79 75 70 60 71 69 76 77 81 81 81 80 76 78 80 78 64 85 Engine 5 | . 14 14 14 4 9 14 15 15 15 15 1 . 2 6 6 6 . . . . . . . . . . . . . . Core 2 | . . . . 4 . . . . . . 11 2 2 6 6 6 3 . 5 5 3 . . 2 . . . . . . Reactor 3 | . . . . . . . . . . . . 10 7 . . . 4 5 4 4 6 11 11 7 9 9 13 12 5 9 Treads 14 | . 28 28 27 34 35 30 30 30 30 30 25 16 12 13 13 13 10 . . . 2 5 3 5 6 5 3 3 7 . Leg 6 | . . . . 1 . . . . . . . . . . . . 6 16 14 18 19 17 18 11 9 10 9 8 6 12 Device 11 | . 14 6 . 7 5 15 15 15 15 15 10 . 14 20 16 6 10 11 14 17 17 13 10 17 10 16 18 17 16 24 Storage 8 | . 14 14 14 9 9 7 7 7 7 7 6 6 6 6 6 6 7 11 10 11 9 8 11 10 9 9 9 9 3 4 Processor 1 | . . . . 8 9 7 7 7 7 7 6 1 1 . . . . . . . . . . . . . . 3 7 5 Protection 8 | . . 7 14 9 11 7 7 7 7 6 15 6 12 8 6 12 12 11 8 . . 4 4 2 3 7 7 3 3 9 Energy Gun 1 | . . . . . . . 2 15 15 15 5 . 5 . . . . . . . . . . . . . . . . . Energy Cannon 9 | . . . 25 7 . 14 12 . . . . 5 . . . 3 6 11 14 16 16 16 16 14 14 14 12 12 5 8 Ballistic Gun 3 | . 24 28 1 8 14 . . . . . 7 4 7 9 12 3 2 . . . . . . . . . . . . . Naked Turns 16 | . . . . . . . . . . . . . . . . . . . . . . . . . . . . 16 . . Heaviest Build 319 | 14 88 88 102 120 111 128 128 120 120 132 193 229 199 200 208 212 234 234 259 235 263 263 259 273 279 286 319 306 134 145 Greatest Support 140 | 20 40 40 40 80 80 80 80 80 80 80 98 140 140 140 140 140 140 115 115 90 90 75 85 85 60 60 75 75 80 140 Greatest Overweight (x) 65 | 1 2 2 2 2 1 1 1 1 1 1 2 2 1 1 1 65 11 2 3 3 3 3 3 4 8 8 5 8 2 2 Average Overweight (x) 2 | . 1 2 2 1 1 1 1 1 1 1 1 1 1 1 1 7 1 2 2 2 2 3 2 3 4 4 4 3 . . Largest Inventory Capacity 30 | 8 25 25 25 25 25 25 25 25 25 25 30 30 30 30 30 30 30 30 30 30 30 30 30 30 30 30 30 30 5 5 Average Capacity 27 | 7 21 25 25 25 25 25 25 25 25 25 26 30 30 30 30 30 29 30 30 30 30 30 30 30 30 30 30 29 5 5 Most Carried 30 | 8 25 25 25 25 25 25 25 25 25 25 26 30 30 30 30 30 30 30 30 30 30 30 30 30 30 30 30 30 5 5 Average Carried 26 | 5 16 24 24 24 24 24 24 24 25 24 24 29 29 29 29 29 21 30 29 29 29 29 29 29 29 29 29 29 3 4 Final Capacity 30 | 8 25 25 25 25 25 25 25 25 25 25 30 30 30 30 30 30 30 30 30 30 30 30 30 30 30 30 30 5 5 5 Final Carried 30 | 8 24 25 25 25 25 25 25 25 25 25 24 30 30 30 28 30 30 30 26 30 30 30 30 30 30 30 30 4 5 4 Class Distribution -------------------- 35% | Hauler-Golem 20% | Scavenger-Mutant 20% | Hauler-Mutant 14% | Mutant 4% | Generator-Golem Dominant Class ---------------- Mutant | -10/Materials Mutant | -10/Mines Mutant | -10/Subcaves Mutant | -8/Materials Scavenger-Mutant | -8/Garrison Scavenger-Mutant | -7/Factory Scavenger-Mutant | -7/Lower Caves Scavenger-Mutant | -7/Lower Caves Scavenger-Mutant | -7/Data Miner Scavenger-Mutant | -6/Proximity Caves Scavenger-Mutant | -6/Factory Hauler-Mutant | -6/Waste Scavenger-Mutant | -6/Factory Hauler-Mutant | -6/Lower Caves Hauler-Mutant | -6/Lower Caves Hauler-Mutant | -6/Zion Hauler-Mutant | -6/Deep Caves Hauler-Golem | -5/Proximity Caves Hauler-Golem | -5/Factory Hauler-Golem | -5/Upper Caves Hauler-Golem | -5/Upper Caves Hauler-Golem | -5/Zhirov Hauler-Golem | -4/Proximity Caves Hauler-Golem | -4/Factory Hauler-Golem | -4/Armory Hauler-Golem | -4/Lab Generator-Golem | -3/Research Generator-Golem | -3/Testing Alien-Mutant | -2/Research Generator-Golem | -1/Access Resources | -11 -10 -10 -10 -8 -8 -7 -7 -7 -7 -6 -6 -6 -6 -6 -6 -6 -6 -5 -5 -5 -5 -5 -4 -4 -4 -4 -3 -3 -2 -1 ----------- Run | Jun Mat Min Sub Mat Gar Fac Low Low Dat Pro Fac Was Fac Low Low Zio Dee Pro Fac Upp Upp Zhi Pro Fac Arm Lab Res Tes Res Acc Matter Collected 11808 | 286 500 72 325 812 1069 293 247 10 . 30 966 495 671 282 264 1561 1016 55 363 413 312 . 255 207 384 241 185 204 84 206 Remotely 399 | . . . . . . . . . . . . . . . . 331 40 . 28 . . . . . . . . . . . Salvage Created 37053 | 104 605 . 603 1633 996 264 128 330 . 28 1792 1663 1136 242 259 1805 660 770 5024 1245 1208 . 1707 1900 2259 241 2622 2955 937 3937 Parts 1709 | 5 50 . 34 94 73 14 8 9 . 3 72 28 43 1 5 122 9 40 243 60 49 . 80 86 104 3 132 132 33 177 Haulers Intercepted 11 | . 2 . . 4 . . . . . . 1 . . . . . . . 1 . 1 . . . . . 1 1 . . Recyclers Shooed 11 | . 2 . . 2 . . . . . . 3 . 1 . . . . . . . . . . 1 . . . . . 2 Parts Field Recycled 1 | . . . . . . . . . . . . . . 1 . . . . . . . . . . . . . . . . Retrieved Matter 200 | . . . . . . . . . . . . . . 200 . . . . . . . . . . . . . . . . Parts Self-Destructed 264 | . . . 23 . . . 6 16 . 8 . . . . . 1 . 40 . 42 44 . 84 . . . . . . . Prevented 5 | . . . . . . . 2 . . . . . . . . . . . . . 3 . . . . . . . . . Kills | -11 -10 -10 -10 -8 -8 -7 -7 -7 -7 -6 -6 -6 -6 -6 -6 -6 -6 -5 -5 -5 -5 -5 -4 -4 -4 -4 -3 -3 -2 -1 ------- Run | Jun Mat Min Sub Mat Gar Fac Low Low Dat Pro Fac Was Fac Low Low Zio Dee Pro Fac Upp Upp Zhi Pro Fac Arm Lab Res Tes Res Acc Combat Hostiles Destroyed 575 | . 14 . 13 26 27 6 4 7 . 2 31 6 19 . 8 12 51 11 82 16 21 . 19 26 35 1 30 35 11 62 Melee 2 | . . . . . 1 . . . . . . . . . . . . . . . . . . . . . . . . 1 Guns 102 | . 9 . . 11 16 . . 7 . 1 31 . 18 . 3 3 1 . . . . . . . . . . . . 2 Cannons 333 | . . . 11 11 1 5 1 . . . . 6 . . . 8 2 11 63 16 16 . 19 26 30 1 24 24 11 47 AOE 116 | . 5 . . 4 9 1 3 . . . . . . . 5 . 44 . 19 . 5 . . . . . 4 7 . 10 Classes Destroyed 35 | 2 7 . 3 3 3 . . 1 . 1 1 1 . 1 . 3 4 . 3 . . . . . . . . 1 . 1 Worker 12 | . 2 . . 4 . . . . . . 1 . . . . . . . 1 . . . . . . . 1 1 . 2 Builder 28 | . . . . 2 . . . . . . . . . . . . . . 8 . . . 2 . . . 8 4 . 4 Tunneler 4 | 2 1 . . . . . . . . . . . . . . . . . 1 . . . . . . . . . . . Hauler 11 | . 2 . . 4 . . . . . . 1 . . . . . . . 1 . 1 . . . . . 1 1 . . Recycler 18 | 1 . . . 4 . . . . . . 1 . 3 . . . . . 2 . . . 2 2 . . 1 2 . . Mechanic 6 | . 1 . . . . . . . . . 2 . . . . . . . 1 . . . . . . . . 1 . 1 Operator 3 | . 1 . . 2 . . . . . . . . . . . . . . . . . . . . . . . . . . Drone 1 | . . . . . . . . . . 1 . . . . . . . . . . . . . . . . . . . . Watcher 28 | . 3 . . 4 . . . . . . 2 . . . . . . . 6 . . . 2 1 2 . 5 2 . 1 Swarmer 96 | . 6 . 2 3 9 . 4 . . . 8 . 1 . 2 . . . 3 7 6 . 4 5 5 . 8 3 . 20 Saboteur 5 | . . . . . . . . . . . . . . . . . . . 2 . . . . . 1 . . 1 . 1 Grunt 168 | . 8 . . 16 5 3 . 4 . . 11 . 7 . 1 . . 4 39 3 12 . . 4 7 . 3 17 8 16 Brawler 6 | . . . . . . . . 1 . . . . 1 . . . . 1 3 . . . . . . . . . . . Duelist 15 | . . . . . 1 . . 1 . . . . 1 . . . . 1 4 . . . 2 . 4 . . . . 1 Protector 4 | . . . . . 1 . . . . . . . . . . . . . 2 . . . . . 1 . . . . . Researcher 2 | . . . . . . . . . . . . . . . . . . . . . . . . . . . . 2 . . Sentry 46 | . . . . 6 5 3 . 1 . . 2 . 3 . 1 . . . 6 2 1 . 4 4 2 . 2 . 1 3 Specialist 4 | . . . . . . . . . . . . . . . . . . . 2 . . . . . 2 . . . . . Hunter 50 | . . . . 1 5 . . . . . 2 . 1 . . . . 4 7 . 2 . 6 2 2 . 8 6 . 4 Programmer 70 | . . . . . . . . . . . 8 . 5 . . . . 1 13 4 . . 2 10 10 . 7 5 2 3 Heavy 2 | . . . . . . . . . . . . . . . . . . . 1 . . . . . . . 1 . . . Q-Series 6 | . . . . . . . . . . . . . . . . . . . . . . . . . . . . . . 6 Behemoth 6 | . . . . . 1 . . . . 1 . . . . . . . . . . . . 1 1 1 . 1 . . . Compactor 6 | . . . . . . . . . . . . 6 . . . . . . . . . . . . . . . . . . Tracker 7 | . . . . . . . . . . . . . . . . . . . . . . . . . . . . 2 . 5 Combat Programmer 4 | . . . . . . . . . . . . . . . . . . . . . . . . . . . . 1 . 3 Artisan 2 | . . . 2 . . . . . . . . . . . . . . . . . . . . . . . . . . . Cobbler 1 | . . . 1 . . . . . . . . . . . . . . . . . . . . . . . . . . . Subdweller 11 | . . . 11 . . . . . . . . . . . . . . . . . . . . . . . . . . . Zionite 56 | . . . . . . . . . . . . . . . . 56 . . . . . . . . . . . . . . Z-Light 6 | . . . . . . . . . . . . . . . . . 6 . . . . . . . . . . . . . Decomposer 2 | . . . . . . . . . . . . . . . 1 . . . . 1 . . . . . . . . . . Packrat 4 | . . . . . . . 1 . . . . . . 3 . . . . . . . . . . . . . . . . Samaritan 6 | . . . . . . . . . . . . . . 1 . . . . . 3 . . 2 . . . . . . . Tinkerer 5 | . . . . . . . . . . . . . . . . 5 . . . . . . . . . . . . . . Assembler 2 | . . . . . . . . . . . . . . . . . 2 . . . . . . . . . . . . . Assembled 41 | . . . . . . . . . . . . . . . . . 41 . . . . . . . . . . . . . Golem 6 | . . . . . . . . . . . . . . . . . 4 . . . . . . . . 2 . . . . Thug 3 | . . . . . . . . . . . . . . . 1 2 . . . . . . . . . . . . . . Butcher 5 | . . . . . . . . . . . . . . . 3 2 . . . . . . . . . . . . . . Marauder 2 | . . . . . . . . . . . . . . . . 2 . . . . . . . . . . . . . . Mutant 6 | . . . . . . . . . . . . . . . . 5 . . . . 1 . . . . . . . . . Best Kill Streak 39 | 1 7 . 2 8 11 3 4 3 . 1 7 1 6 . 4 11 39 3 19 7 5 . 4 5 7 1 17 17 10 13 Combat Bots Only 37 | . 3 . 2 5 11 3 4 3 . 1 3 1 5 . 4 1 37 3 16 7 5 . 4 5 7 1 11 12 10 13 Max Kills in Single Turn 30 | 1 7 . 1 4 4 1 2 1 . 1 2 1 1 1 3 2 30 2 10 2 5 . 2 1 1 1 4 4 1 7 Gunslinging . | . . . . . . . . . . . . . . . . . . . . . . . . . . . . . . . Exploded 30 | . 3 . . 3 4 1 2 . . . . . . . 3 . 30 . 8 . 5 . . . . . 4 3 . 5 Melee 1 | . . . . . 1 . . . . . . . . . . . . . . . . . . . . . . . . 1 Uniques/NPCs Destroyed 2 | . . . . . . . . . . . . . . . . 1 . . . . . . . . . 1 . . . . Imprinter (-6/Zion) A5 (-4/Lab) Combat | -11 -10 -10 -10 -8 -8 -7 -7 -7 -7 -6 -6 -6 -6 -6 -6 -6 -6 -5 -5 -5 -5 -5 -4 -4 -4 -4 -3 -3 -2 -1 -------- Run | Jun Mat Min Sub Mat Gar Fac Low Low Dat Pro Fac Was Fac Low Low Zio Dee Pro Fac Upp Upp Zhi Pro Fac Arm Lab Res Tes Res Acc Damage Taken 48713 | . 418 . 675 1032 1944 369 116 409 . 303 2212 . 2572 . 976 1151 2003 452 3403 1052 774 . 1561 2533 2752 862 4686 4630 1141 10687 Core 4772 | . 15 . 133 105 156 27 12 46 . . 77 . 120 . 67 45 163 31 341 66 72 . 167 117 224 . 238 917 17 1616 Absorbed by Shields 4773 | . . . . 12 24 147 44 159 . 109 289 . . . . . . . . . . . . 436 . . 1683 1870 . . Reduced by Siege Mode 766 | . . . . . . . . . . . . . 48 . 11 64 86 . . . . . . . 104 104 260 89 . . Redirected to Shielding 445 | . . . 29 2 21 . . . . . . . . . . . 114 . . . . . . . . . . . . 279 Ignored by Resistances 4502 | . . . . 56 35 . . . . 24 137 . . . . . . 91 582 . . . . . 25 160 863 884 223 1422 Regen/Repaired (Parts) 412 | . . . . . . . . . . . . . . . . . . . . . . . . . . . 412 . . . Core Remaining (%) 58 | 100 . . 40 . 52 . . . . 87 . . . . . . . 40 . . . . 35 . . 65 . 6 98 . Volleys Fired 3365 | 21 71 1 60 92 71 15 16 15 . 9 106 112 68 . 12 1633 34 26 159 37 33 . 70 86 117 45 133 120 24 179 Largest 3 | 2 2 2 2 2 2 2 2 2 . 2 2 2 2 . 2 2 2 2 3 3 3 . 3 3 3 3 3 3 3 3 Hottest 160 | 40 100 40 160 160 96 130 160 160 . 160 160 93 155 . 60 130 138 50 75 75 75 . 140 75 80 75 100 120 75 138 Shots Fired 5139 | 42 136 2 100 164 131 25 25 30 . 18 216 127 135 1 23 1790 52 49 399 88 87 . 131 186 243 72 254 213 55 345 Gun 1018 | 42 129 2 5 62 116 . 2 30 . 18 215 30 135 1 21 166 4 . . . . . 3 . . . . . . 37 Cannon 4021 | . . . 84 100 6 20 19 . . . . 90 . . . 1621 30 49 392 88 86 . 128 186 238 72 250 206 55 301 Launcher 76 | . 2 . . 2 9 5 4 . . . . . . . 2 3 18 . 7 . 1 . . . 5 . 4 7 . 7 Special 24 | . 5 . 11 . . . . . . . 1 7 . . . . . . . . . . . . . . . . . . Kinetic 853 | 42 129 2 5 97 131 . . . . . 152 30 70 1 21 167 6 . . . . . . . . . . . . . Thermal 4206 | . 5 . 95 67 . 20 21 30 . 18 63 90 65 . . 1621 20 49 392 88 86 . 131 186 238 72 250 206 55 338 Explosive 46 | . 2 . . . . 5 4 . . . . . . . 2 2 16 . 7 . 1 . . . . . . . . 7 Electromagnetic 26 | . . . . . . . . . . . . . . . . . 10 . . . . . . . 5 . 4 7 . . Robot Hit Streak 46 | 9 15 4 12 31 22 13 10 11 . 25 36 24 28 . 11 35 12 13 25 23 9 . 10 23 20 43 46 34 22 33 Robot Miss Streak 6 | 3 5 . 2 4 6 1 1 5 . 4 3 2 5 . 2 3 4 1 3 2 1 . 2 5 5 1 5 2 1 5 Penetration Max . | . . . . . . . . . . . . . . . . . . . . . . . . . . . . . . . Secondary Targets 11 | . 1 . . 1 . . . 1 . . 2 . 4 . . 2 . . . . . . . . . . . . . . Max Gunslinging Chain 1 | . 1 . . 1 . . . 1 . . 1 . 1 . . 1 . . . . . . . . . . . . . . Capacitor 28 | . . . . . . . . . . . . . . . . . . . . . . . . . . . . 28 . . Shots Hit Robots 2541 | 27 85 2 59 111 110 20 11 28 . 17 183 95 118 4 19 254 35 29 251 47 46 . 80 113 126 56 181 152 47 235 Core Hits 1577 | 6 46 1 18 106 65 17 8 25 . 8 109 23 93 . 22 99 127 15 239 22 36 . 45 39 70 17 71 101 25 124 Critical Kills 6 | . . . 2 . 1 . . . . . . . . . . . . . . . . . . . . . 2 1 . . Critical Parts Destroyed 10 | 1 1 . . . 2 . . . . . 1 . . . . 1 1 . . . . . . . . . . . . 3 Critical Strikes 24 | 1 1 . 2 2 5 . . . . . 1 1 . . . 1 2 . . . . . . . . . 2 1 . 5 Burn 2 | . . . . . . . . . . . . . . . . . . . . . . . . . . . . . . 2 Meltdown 5 | . . . 2 . . . . . . . . . . . . . . . . . . . . . . . 2 1 . . Destroy 9 | 1 1 . . . 4 . . . . . 1 1 . . . 1 . . . . . . . . . . . . . . Blast 2 | . . . . 2 . . . . . . . . . . . . . . . . . . . . . . . . . . Corrupt 1 | . . . . . . . . . . . . . . . . . 1 . . . . . . . . . . . . . Smash 4 | . . . . . . . . . . . . . . . . . 1 . . . . . . . . . . . . 3 Impale 1 | . . . . . 1 . . . . . . . . . . . . . . . . . . . . . . . . . Melee Attacks 115 | . . . 28 2 39 . . . . . 2 . . 4 . 1 20 . . . . . . . . . . . . 19 Impact 39 | . . . . . . . . . . . . . . 4 . 1 20 . . . . . . . . . . . . 14 Slashing 2 | . . . . . . . . . . . . . . . . . . . . . . . . . . . . . . 2 Piercing 74 | . . . 28 2 39 . . . . . 2 . . . . . . . . . . . . . . . . . . 3 Sneak Attacks 4 | . . . . . . . . . . . . . . 4 . . . . . . . . . . . . . . . . Combat Hostiles . | . . . . . . . . . . . . . . . . . . . . . . . . . . . . . . . Follow-up Attacks 1 | . . . . . . . . . . . . . . . . . . . . . . . . . . . . . . 1 Damage Inflicted 107330 | 263 1080 17 1246 2932 3200 797 405 699 . 548 4072 2328 3029 417 1066 5632 5138 1425 14889 2424 2467 . 3721 5536 6473 2093 10337 10168 2307 12621 Guns 16092 | 263 814 17 90 941 1633 . 54 699 . 548 4055 493 3019 . 382 2445 42 . . . . . 25 . . . . . . 572 Cannons 71805 | . . . 1156 1524 74 430 218 . . . . 1835 . . . 3025 253 1425 12071 2424 2205 . 3696 5397 5936 2093 9486 7134 2258 9165 Explosions 16499 | . 265 . . 428 880 367 133 . . . . . . . 684 162 4002 . 2818 . 262 . . 79 537 . 834 3034 . 2014 Melee 2726 | . . . . . 613 . . . . . . . . 417 . . 841 . . . . . . . . . . . . 855 Ramming 208 | . 1 . . 39 . . . . . . 17 . 10 . . . . . . . . . . 60 . . 17 . 49 15 Kinetic 13403 | 263 814 17 90 1849 2587 . . . . . 2698 493 1310 . 382 2607 293 . . . . . . . . . . . . . Thermal 77044 | . . . 1156 1044 . 430 272 699 . 548 1357 1835 1709 . . 3025 66 1425 12071 2424 2205 . 3721 5397 5956 2093 9874 7742 2258 9737 Explosive 11086 | . 265 . . . . 367 133 . . . . . . . 684 . 3751 . 2818 . 262 . . 79 . . . 713 . 2014 Electromagnetic 2863 | . . . . . . . . . . . . . . . . . 187 . . . . . . . 517 . 446 1713 . . Impact 1964 | . . . . . . . . . . . . . . 417 . . 841 . . . . . . . . . . . . 706 Slashing 42 | . . . . . . . . . . . . . . . . . . . . . . . . . . . . . . 42 Piercing 720 | . . . . . 613 . . . . . . . . . . . . . . . . . . . . . . . . 107 Highest Corruption 34 | . 1 1 1 . . . . . . . 9 18 26 26 26 26 1 2 6 8 8 . 1 2 10 10 11 34 1 21 Average Corruption 5 | . 1 1 1 . . . . . . . 6 16 20 26 26 1 1 1 3 7 7 . 1 1 5 7 8 14 1 9 Corruption Purged 13 | . . . . . . . . . . . 5 . . . . . . . . . 8 . . . . . . . . . Corruption Blocked 36 | . . . . . . . . . . . . . . . . . . . . . . . . . 21 . . 15 . . Effects 1074 | . 8 14 48 . . . . . . . 61 57 106 63 46 31 30 41 42 122 85 . 26 16 69 47 27 75 2 58 Message Errors 246 | . 3 5 9 . . . . . . . 18 9 24 15 11 6 4 9 12 28 17 . 6 7 18 12 8 14 1 10 Matter Fused 274 | . 3 5 17 . . . . . . . 15 16 26 20 12 7 11 8 15 26 25 . 6 3 8 17 5 15 1 13 Heat Flow Errors 119 | . 1 1 5 . . . . . . . 10 7 7 6 3 5 2 3 4 11 14 . 2 1 11 5 3 9 . 9 Energy Discharges 107 | . . 1 4 . . . . . . . 3 5 14 7 4 2 3 6 4 16 5 . 4 1 10 6 2 6 . 4 Parts Rejected 15 | . . . . . . . . . . . . 1 3 . . . . . 1 . . . . . 2 . 2 3 . 3 Parts Fused 13 | . . . . . . . . . . . . . . . . 1 1 1 . 3 3 . . . 1 . . 2 . 1 Data Loss (minor) 121 | . . 2 7 . . . . . . . 4 5 15 11 9 2 4 4 2 20 10 . 3 2 8 3 2 5 . 3 Data Loss (major) 60 | . . . 2 . . . . . . . 2 2 6 2 2 4 3 7 1 10 4 . 3 1 1 1 1 4 . 4 Misfires 47 | . 1 . 1 . . . . . . . 6 2 4 1 2 1 2 2 2 6 5 . 1 . 4 2 . 1 . 4 Alerts 27 | . . . 3 . . . . . . . 2 3 1 1 2 2 . . . 1 2 . . 1 3 1 . 3 . 2 Misdirections 9 | . . . . . . . . . . . . 1 1 . . . . . . . . . . . . . . 4 . 3 Weapon Failures 36 | . . . . . . . . . . . 1 6 5 . 1 1 . 1 1 1 . . 1 . 3 . 4 9 . 2 Overload Shots . | . . . . . . . . . . . . . . . . . . . . . . . . . . . . . . . Overflow Damage 3904 | . 7 . 13 43 58 24 5 . . . . . . 227 9 48 191 19 344 448 62 . 101 217 174 24 731 417 10 732 Projectiles 2822 | . . . 13 15 . . 5 . . . . . . . . 48 . 19 340 448 62 . 101 198 174 24 688 382 10 295 Explosions 361 | . 7 . . 28 9 24 . . . . . . . . 9 . 130 . 4 . . . . . . . 43 35 . 72 Melee 721 | . . . . . 49 . . . . . . . . 227 . . 61 . . . . . . 19 . . . . . 365 Knockbacks 12 | . . . . 1 . . . . . . . . . 1 . . 1 . . . . . . 1 . . . . . 8 Impact 10 | . . . . . . . . . . . . . . 1 . . 1 . . . . . . 1 . . . . . 7 Kinetic 1 | . . . . 1 . . . . . . . . . . . . . . . . . . . . . . . . . . Secondary 1 | . . . . . . . . . . . . . . . . . . . . . . . . . . . . . . 1 Self-Inflicted Damage 1402 | . 13 . . . 68 47 . . . . . . . . 151 . 45 . 252 . 27 . . . 46 . 63 566 . 124 Shots 69 | . 2 . . . 2 3 . . . . . . . . 6 . 2 . 13 . 1 . . . 4 . 4 30 . 2 Rammed 11 | . 1 1 . 2 . . . . . . 4 . 2 . . . . . . . . . . . . . . . 1 . Targets Rammed 22 | . 1 1 . 3 . . . . . . 4 . 2 . . . . . . . . . . 2 . . 2 . 5 2 Kicked 10 | . . . . . . . . . . . . . . . . . . . . . . . . 2 . . 2 . 4 2 Crushed 1 | . . . . 1 . . . . . . . . . . . . . . . . . . . . . . . . . . Highest Temperature 432 | . 185 238 253 395 54 9 21 160 . 90 259 432 259 215 133 380 257 235 313 265 248 . 209 89 245 246 190 333 . 227 Average Temperature 82 | . 40 122 56 106 22 5 14 75 . 33 79 94 93 84 43 87 91 79 62 58 71 . 70 41 108 99 34 122 . 97 Received Heat Transfer 6501 | . 174 . 66 537 332 140 . 189 . 54 568 . 726 . 153 126 435 45 783 99 142 . 72 194 180 . 205 399 270 612 Effects 24 | . . . 1 7 . . . . . . 1 4 . . . 7 . . 2 . . . . . . . . 2 . . Shutdowns 3 | . . . . . . . . . . . . 2 . . . 1 . . . . . . . . . . . . . . Energy Bleed 6 | . . . 1 . . . . . . . . . . . . 3 . . 2 . . . . . . . . . . . Interference 12 | . . . . 6 . . . . . . 1 1 . . . 2 . . . . . . . . . . . 2 . . Matter Decay 1 | . . . . . . . . . . . . 1 . . . . . . . . . . . . . . . . . . Short Circuit 1 | . . . . . . . . . . . . . . . . 1 . . . . . . . . . . . . . . Damage (minor) 1 | . . . . 1 . . . . . . . . . . . . . . . . . . . . . . . . . . Siege Activations 58 | . . . . . . . . . . . . . 4 . 2 34 4 . . . . . . . 5 1 4 4 . . Total Turns 3349 | . . . . . . . . . . . . . 75 . 18 2748 57 . . . . . . . 135 47 165 104 . . Longest Duration 190 | . . . . . . . . . . . . . 34 . 14 190 21 . . . . . . . 67 47 62 42 . . Robots Corrupted 8 | . . . . . . . . . . . . . . . . . 2 . . . . . . . 4 . . 2 . . Combat Hostiles 8 | . . . . . . . . . . . . . . . . . 2 . . . . . . . 4 . . 2 . . Parts Fried 36 | . . . . . . . . . . . . . . 1 . . . . . . . . . . 9 . 3 15 . 8 Impact Corruptions 21 | . . . . . . . . . . . . . . 9 . . 3 . . . . . . 1 . . . . . 8 Robots Melted 10 | . . . 2 . . . . . . 1 . . 1 . . 1 . . . . . . . . 1 . 2 2 . . Combat Hostiles 10 | . . . 2 . . . . . . 1 . . 1 . . 1 . . . . . . . . 1 . 2 2 . . Parts Melted 86 | . . . 10 5 . . . 3 . . 8 . 5 . . 5 . . 5 1 2 . 5 5 7 . 7 6 . 12 Heat Transferred 56050 | . . . 1998 1406 . 592 421 1600 . 1125 2975 2516 2250 . . 4744 62 775 6453 1225 1225 . 2137 2875 3117 1283 5471 4553 1110 6137 Parts Sabotaged . | . . . . . . . . . . . . . . . . . . . . . . . . . . . . . . . Parts Stolen . | . . . . . . . . . . . . . . . . . . . . . . . . . . . . . . . Parts Stripped . | . . . . . . . . . . . . . . . . . . . . . . . . . . . . . . . Power Chain Reactions 10 | . . . . . . . . . . . . . . . . . . . . . . . . . 1 . 4 5 . . Missiles Intercepted . | . . . . . . . . . . . . . . . . . . . . . . . . . . . . . . . Alert | -11 -10 -10 -10 -8 -8 -7 -7 -7 -7 -6 -6 -6 -6 -6 -6 -6 -6 -5 -5 -5 -5 -5 -4 -4 -4 -4 -3 -3 -2 -1 ------- Run | Jun Mat Min Sub Mat Gar Fac Low Low Dat Pro Fac Was Fac Low Low Zio Dee Pro Fac Upp Upp Zhi Pro Fac Arm Lab Res Tes Res Acc Peak Influence 2123 | 15 273 . . 445 1433 796 . . . . 543 192 211 . . . . . 2123 . . . . 485 824 . 818 1476 907 1602 Initial 824 | . 9 . . . 210 751 . . . . 300 190 2 . . . . . . . . . . 233 237 . . 400 824 544 Average 386 | 6 70 . . 215 793 701 . . . . 302 65 80 . . . . . 518 . . . . 186 415 . 349 667 787 970 Maximum Alert Level 5 | . 1 . . 2 4 3 . . . . 2 . 1 . . . . . 5 . . . . 2 3 . 3 4 3 5 Low Security (%) 42 | 100 89 100 . 44 . . . . . . 39 100 96 . . . . . 35 . . . . 41 14 . 47 . . . Level 1 21 | . 10 . . 43 18 . . . . . 28 . 3 . . . . . 25 . . . . 53 51 . 2 27 . . Level 2 16 | . . . . 11 24 56 . . . . 31 . . . . . . . 8 . . . . 5 24 . 32 41 22 24 Level 3 12 | . . . . . 41 43 . . . . . . . . . . . . 16 . . . . . 8 . 17 3 77 29 Level 4 6 | . . . . . 15 . . . . . . . . . . . . . 5 . . . . . . . . 27 . 45 Level 5 . | . . . . . . . . . . . . . . . . . . . 5 . . . . . . . . . . . High Security . | . . . . . . . . . . . . . . . . . . . 4 . . . . . . . . . . . Max Security . | . . . . . . . . . . . . . . . . . . . . . . . . . . . . . . . Squads Dispatched 112 | . 2 . . 4 . 2 . . . . 8 . 5 . . . . . 25 . . . 2 5 14 . 4 14 4 23 Investigation 9 | . 1 . . . . 1 . . . . 1 . . . . . . . 2 . . . 1 . 1 . . 1 . 1 Extermination 35 | . . . . . . 1 . . . . 5 . 2 . . . . . 5 . . . . 5 7 . 2 2 2 4 Reinforcement 25 | . 1 . . 3 . . . . . . 2 . 3 . . . . . 4 . . . 1 . 4 . 1 5 . 1 Assault 24 | . . . . . . . . . . . . . . . . . . . 11 . . . . . 2 . 1 3 2 5 Garrison 5 | . . . . 1 . . . . . . . . . . . . . . 3 . . . . . . . . . . 1 Intercept 14 | . . . . . . . . . . . . . . . . . . . . . . . . . . . . 3 . 11 Searches Triggered . | . . . . . . . . . . . . . . . . . . . . . . . . . . . . . . . Data Miner Redirects 16 | . . . . . . . . . . . . . . . . . . . 4 . . . . . 1 . 1 4 1 5 Construction Impeded 3 | . . . . 1 . . . . . . . . . . . . . . . . . . 1 . . . . 1 . . Haulers Reinforced 4 | . . . . . . . . . . . 2 . 1 . . . . . . . . . . . . . . 1 . . Active Scanning Responses . | . . . . . . . . . . . . . . . . . . . . . . . . . . . . . . . Cargo Convoy Interrupts 1 | . . . . . . . . . . . . . 1 . . . . . . . . . . . . . . . . . Stealth | -11 -10 -10 -10 -8 -8 -7 -7 -7 -7 -6 -6 -6 -6 -6 -6 -6 -6 -5 -5 -5 -5 -5 -4 -4 -4 -4 -3 -3 -2 -1 --------- Run | Jun Mat Min Sub Mat Gar Fac Low Low Dat Pro Fac Was Fac Low Low Zio Dee Pro Fac Upp Upp Zhi Pro Fac Arm Lab Res Tes Res Acc Distress Signals 19 | . 1 . . 3 . . . . . . 2 . 2 . . . . . . . . . 1 1 2 . 4 2 . 1 Communications Jammed 195 | . . . . . . . . . . . . . . . . . . . 7 . . . . 1 28 . 135 24 . . Distress Signals 192 | . . . . . . . . . . . . . . . . . . . 4 . . . . 1 28 . 135 24 . . Times Spotted 821 | . 29 . 25 38 30 8 5 7 . 3 42 6 25 . 10 48 55 11 107 16 20 . 29 31 49 1 41 62 21 102 Peak Tracking Total 37 | . 4 . 3 5 12 3 4 3 . 1 3 5 5 . 5 6 37 3 12 7 5 . 7 4 7 1 9 11 8 26 Tactical Retreats 43 | . . . 2 2 3 . 1 . . . 1 . 1 . 1 3 7 . 4 . . . 2 . 1 . 3 2 . 10 Traps | -11 -10 -10 -10 -8 -8 -7 -7 -7 -7 -6 -6 -6 -6 -6 -6 -6 -6 -5 -5 -5 -5 -5 -4 -4 -4 -4 -3 -3 -2 -1 ------- Run | Jun Mat Min Sub Mat Gar Fac Low Low Dat Pro Fac Was Fac Low Low Zio Dee Pro Fac Upp Upp Zhi Pro Fac Arm Lab Res Tes Res Acc Traps Triggered 34 | . 4 . 3 . 9 1 . . . . 1 . 3 . . . . . 2 . . . 1 2 . . 5 . . 3 Indirectly . | . . . . . . . . . . . . . . . . . . . . . . . . . . . . . . . Trap Hack Attempts . | . . . . . . . . . . . . . . . . . . . . . . . . . . . . . . . Triggered . | . . . . . . . . . . . . . . . . . . . . . . . . . . . . . . . Disarmed . | . . . . . . . . . . . . . . . . . . . . . . . . . . . . . . . Reprogrammed . | . . . . . . . . . . . . . . . . . . . . . . . . . . . . . . . Reused . | . . . . . . . . . . . . . . . . . . . . . . . . . . . . . . . Traps Extracted . | . . . . . . . . . . . . . . . . . . . . . . . . . . . . . . . Installed . | . . . . . . . . . . . . . . . . . . . . . . . . . . . . . . . Triggered 7 | . . . . . . . 1 . . . . . 2 . . . . . . . 4 . . . . . . . . . Most Traps Carried 3 | . . 3 3 2 . . . . . . . . . . . . . . . . . . . . . . . . . . Machines | -11 -10 -10 -10 -8 -8 -7 -7 -7 -7 -6 -6 -6 -6 -6 -6 -6 -6 -5 -5 -5 -5 -5 -4 -4 -4 -4 -3 -3 -2 -1 ---------- Run | Jun Mat Min Sub Mat Gar Fac Low Low Dat Pro Fac Was Fac Low Low Zio Dee Pro Fac Upp Upp Zhi Pro Fac Arm Lab Res Tes Res Acc Machines Disabled 69 | . . . 2 3 4 1 . . . . . . . . . 3 2 . 3 1 1 . 3 4 13 2 2 21 . 4 Max in Single Turn 5 | . . . . 1 1 1 . . . . . . . . . 2 1 . 1 1 1 . 1 1 1 1 1 5 . 1 Garrison Access 6 | . . . . . . 1 . . . . . . 1 . . . . . 2 . . . . . . . . 1 . 1 Garrison Relay 3 | . . . . . 3 . . . . . . . . . . . . . . . . . . . . . . . . . Energy Cycler 1 | . . . . . . . . . . . . . . . . . . . . . . . . . . . . . . 1 Machines Repaired . | . . . . . . . . . . . . . . . . . . . . . . . . . . . . . . . Machines Sabotaged . | . . . . . . . . . . . . . . . . . . . . . . . . . . . . . . . Overloaded Fab Kills . | . . . . . . . . . . . . . . . . . . . . . . . . . . . . . . . Hacking | -11 -10 -10 -10 -8 -8 -7 -7 -7 -7 -6 -6 -6 -6 -6 -6 -6 -6 -5 -5 -5 -5 -5 -4 -4 -4 -4 -3 -3 -2 -1 --------- Run | Jun Mat Min Sub Mat Gar Fac Low Low Dat Pro Fac Was Fac Low Low Zio Dee Pro Fac Upp Upp Zhi Pro Fac Arm Lab Res Tes Res Acc Machines Accessed 80 | . 9 . 1 6 1 8 1 1 4 . 2 . 4 1 . . . 1 12 . 1 4 4 4 4 . 1 6 . 5 Terminals 43 | . 7 . . 4 1 6 . . . . 1 . 1 . . . . 1 8 . . . 2 2 2 . 1 3 . 4 Fabricators 6 | . . . . . . . . . . . 1 . 1 . . . . . 1 . . . 1 . 2 . . . . . Repair Stations 3 | . 1 . . . . . . . . . . . . . . . . . . . . . . 1 . . . 1 . . Recycling Units 4 | . 1 . . . . . . . . . . . . . . . . . 1 . . . 1 1 . . . . . . Scanalyzers 4 | . . . . 1 . 1 . . . . . . 1 . . . . . . . . . . . . . . 1 . . Garrison Access 7 | . . . . 1 . 1 . . . . . . 1 . . . . . 2 . . . . . . . . 1 . 1 Total Hacks 202 | . 25 . 1 15 1 19 1 1 32 . 5 . 13 1 . . . 1 23 . 1 17 5 7 7 . 3 15 . 9 Successful 110 | . 7 . 1 5 . 8 1 1 32 . 2 . 8 1 . . . 1 8 . 1 17 2 3 5 . 2 4 . 1 Failed 91 | . 17 . . 10 1 11 . . . . 3 . 5 . . . . . 15 . . . 3 4 2 . 1 11 . 8 Catastrophic 27 | . 3 . . 3 1 2 . . . . 1 . . . . . . . 8 . . . 2 2 . . . 2 . 3 Database Lockouts 1 | . 1 . . . . . . . . . . . . . . . . . . . . . . . . . . . . . Manual 41 | . 11 . . 8 . 6 . . . . . . . . . 4 . . 3 . . . . 4 1 1 2 1 . . Terminals 96 | . 23 . . 10 1 15 . . . . 2 . 4 . . . . 1 16 . . . 2 5 3 . 3 5 . 6 Fabricators 11 | . . . . . . . . . . . 3 . 1 . . . . . 2 . . . 1 . 4 . . . . . Repair Stations 4 | . 1 . . . . . . . . . . . . . . . . . . . . . . 1 . . . 2 . . Recycling Units 7 | . 1 . . . . . . . . . . . . . . . . . 3 . . . 2 1 . . . . . . Scanalyzers 17 | . . . . 3 . 3 . . . . . . 7 . . . . . . . . . . . . . . 4 . . Garrison Access 13 | . . . . 2 . 1 . . . . . . 1 . . . . . 2 . . . . . . . . 4 . 3 Terminal Hacks 78 | . 6 . 1 2 . 3 1 1 32 . . . 1 1 . . . 1 2 . 1 17 2 2 1 . 2 2 . . Record 21 | . . . 1 . . . . . 11 . . . . . . . . 1 . . 1 5 1 . . . 1 . . . Part Schematic 20 | . 2 . . . . 1 . . 12 . . . . . . . . . . . . 4 . . 1 . . . . . Robot Schematic 6 | . . . . . . . . . 6 . . . . . . . . . . . . . . . . . . . . . Robot Analysis 4 | . . . . . . . . . . . . . . . . . . . . . . 4 . . . . . . . . Prototype ID Bank 7 | . . . . . . . . . 3 . . . . . . . . . . . . 4 . . . . . . . . Open Door 4 | . . . . . . . 1 1 . . . . . 1 . . . . . . . . 1 . . . . . . . Level Access Points 2 | . . . . . . 1 . . . . . . . . . . . . 1 . . . . . . . . . . . Branch Access Points 4 | . . . . 1 . . . . . . . . 1 . . . . . . . . . . 1 . . 1 . . . Terminal Index 1 | . . . . . . 1 . . . . . . . . . . . . . . . . . . . . . . . . Unreport Threat 1 | . . . . 1 . . . . . . . . . . . . . . . . . . . . . . . . . . Locate Traps 2 | . 1 . . . . . . . . . . . . . . . . . 1 . . . . . . . . . . . Hauler Manifests 4 | . 2 . . . . . . . . . . . . . . . . . . . . . . 1 . . . 1 . . Zone Layout 2 | . 1 . . . . . . . . . . . . . . . . . . . . . . . . . . 1 . . Fabricator Hacks 8 | . . . . . . . . . . . 2 . . . . . . . 2 . . . . . 4 . . . . . Load Schematic 4 | . . . . . . . . . . . 1 . . . . . . . 1 . . . . . 2 . . . . . Build 4 | . . . . . . . . . . . 1 . . . . . . . 1 . . . . . 2 . . . . . Repair Station Hacks 1 | . . . . . . . . . . . . . . . . . . . . . . . . . . . . 1 . . Scan Component 1 | . . . . . . . . . . . . . . . . . . . . . . . . . . . . 1 . . Recycling Unit Hacks 3 | . 1 . . . . . . . . . . . . . . . . . 1 . . . . 1 . . . . . . Retrieve Components 3 | . 1 . . . . . . . . . . . . . . . . . 1 . . . . 1 . . . . . . Scanalyzer 12 | . . . . 2 . 3 . . . . . . 6 . . . . . . . . . . . . . . 1 . . Insert Component 7 | . . . . 2 . 2 . . . . . . 2 . . . . . . . . . . . . . . 1 . . Analyze 5 | . . . . . . 1 . . . . . . 4 . . . . . . . . . . . . . . . . . Garrison Access Hacks 6 | . . . . 1 . 1 . . . . . . 1 . . . . . 2 . . . . . . . . . . 1 Unlock Access 1 | . . . . 1 . . . . . . . . . . . . . . . . . . . . . . . . . . Seal Access 5 | . . . . . . 1 . . . . . . 1 . . . . . 2 . . . . . . . . . . 1 Unauthorized Hacks 2 | . . . . . . 1 . . . . . . . . . . . . 1 . . . . . . . . . . . Terminals 1 | . . . . . . 1 . . . . . . . . . . . . . . . . . . . . . . . . Assimilate 1 | . . . . . . 1 . . . . . . . . . . . . . . . . . . . . . . . . Fabricators . | . . . . . . . . . . . . . . . . . . . . . . . . . . . . . . . Repair Stations . | . . . . . . . . . . . . . . . . . . . . . . . . . . . . . . . Recycling Units 1 | . . . . . . . . . . . . . . . . . . . 1 . . . . . . . . . . . Reject 1 | . . . . . . . . . . . . . . . . . . . 1 . . . . . . . . . . . Scanalyzers . | . . . . . . . . . . . . . . . . . . . . . . . . . . . . . . . Garrison Access . | . . . . . . . . . . . . . . . . . . . . . . . . . . . . . . . Data Cores Recovered . | . . . . . . . . . . . . . . . . . . . . . . . . . . . . . . . Used . | . . . . . . . . . . . . . . . . . . . . . . . . . . . . . . . Hacking Detections 56 | . 8 . . 6 1 6 . . . . 2 . 3 . . . . . 9 . . . 2 4 3 . 1 6 . 5 Full Trace Events 8 | . . . . . . 1 . . . . 1 . . . . . . . 2 . . . 1 . 1 . . 1 . 1 Feedback Events . | . . . . . . . . . . . . . . . . . . . . . . . . . . . . . . . Feedback Blocked . | . . . . . . . . . . . . . . . . . . . . . . . . . . . . . . . Robot Schematics Acquired 6 | . . . . . . . . . 6 . . . . . . . . . . . . . . . . . . . . . Robots Built . | . . . . . . . . . . . . . . . . . . . . . . . . . . . . . . . Authchips . | . . . . . . . . . . . . . . . . . . . . . . . . . . . . . . . Time . | . . . . . . . . . . . . . . . . . . . . . . . . . . . . . . . Total Robot Build Rating . | . . . . . . . . . . . . . . . . . . . . . . . . . . . . . . . Part Schematics Acquired 23 | . 1 . . . . 2 . . 12 . . . 1 . . . . . . . . 4 . . 1 . . 2 . . Parts Built 3 | . . . . . . . . . . . 1 . . . . . . . 1 . . . . . 1 . . . . . Authchips 1 | . . . . . . . . . . . . . . . . . . . . . . . . . 1 . . . . . Time 152 | . . . . . . . . . . . 51 . . . . . . . 51 . . . . . 50 . . . . . Total Part Build Rating 3 | . . . . . . . . . . . 1 . . . . . . . 1 . . . . . 1 . . . . . Parts Repaired . | . . . . . . . . . . . . . . . . . . . . . . . . . . . . . . . Time . | . . . . . . . . . . . . . . . . . . . . . . . . . . . . . . . Parts Recycled . | . . . . . . . . . . . . . . . . . . . . . . . . . . . . . . . Recycled Matter . | . . . . . . . . . . . . . . . . . . . . . . . . . . . . . . . Retrieved Matter . | . . . . . . . . . . . . . . . . . . . . . . . . . . . . . . . Retrieved Components 14 | . 9 . . . . . . . . . . . . . . . . . 2 . . . . 3 . . . . . . Parts Scanalyzed 3 | . . . . . . 1 . . . . . . 2 . . . . . . . . . . . . . . . . . Part Schematics Acquired 2 | . . . . . . 1 . . . . . . 1 . . . . . . . . . . . . . . . . . Parts Damaged . | . . . . . . . . . . . . . . . . . . . . . . . . . . . . . . . Bothacking | -11 -10 -10 -10 -8 -8 -7 -7 -7 -7 -6 -6 -6 -6 -6 -6 -6 -6 -5 -5 -5 -5 -5 -4 -4 -4 -4 -3 -3 -2 -1 ------------ Run | Jun Mat Min Sub Mat Gar Fac Low Low Dat Pro Fac Was Fac Low Low Zio Dee Pro Fac Upp Upp Zhi Pro Fac Arm Lab Res Tes Res Acc Used RIF Installer 1 | . . . . . 1 . . . . . . . . . . . . . . . . . . . . . . . . . Robots Hacked 7 | . . . . . . . . . . . 1 6 . . . . . . . . . . . . . . . . . . Non-combat 1 | . . . . . . . . . . . 1 . . . . . . . . . . . . . . . . . . . Combat 6 | . . . . . . . . . . . . 6 . . . . . . . . . . . . . . . . . . Robot Hacks Applied 8 | . . . . . . . . . . . 1 7 . . . . . . . . . . . . . . . . . . parse_system 1 | . . . . . . . . . . . . 1 . . . . . . . . . . . . . . . . . . find_chute 1 | . . . . . . . . . . . 1 . . . . . . . . . . . . . . . . . . . ignore_targets 6 | . . . . . . . . . . . . 6 . . . . . . . . . . . . . . . . . . Relay Couplers Released 13 | . . . . . 9 . . . . . . . . . . . . . . . . . . . . . . 4 . . Machine Destruction 13 | . . . . . 9 . . . . . . . . . . . . . . . . . . . . . . 4 . . Attached 1 | . . . . . . . . . . . . 1 . . . . . . . . . . . . . . . . . . Fabnet Peak Effective % . | . . . . . . . . . . . . . . . . . . . . . . . . . . . . . . . Robots Rewired 17 | . . . . . 4 . . . . . . . . . . . . . . 2 . . 11 . . . . . . . Allies Hacked . | . . . . . . . . . . . . . . . . . . . . . . . . . . . . . . . Hacks Repelled . | . . . . . . . . . . . . . . . . . . . . . . . . . . . . . . . Allies | -11 -10 -10 -10 -8 -8 -7 -7 -7 -7 -6 -6 -6 -6 -6 -6 -6 -6 -5 -5 -5 -5 -5 -4 -4 -4 -4 -3 -3 -2 -1 -------- Run | Jun Mat Min Sub Mat Gar Fac Low Low Dat Pro Fac Was Fac Low Low Zio Dee Pro Fac Upp Upp Zhi Pro Fac Arm Lab Res Tes Res Acc Total Allies 44 | . . 5 . . 4 1 . . . 1 . . . . . . . . . 2 . . 11 . . 2 . 3 . 15 Largest Group 11 | . . 5 5 . 4 1 1 . . 1 . . . . . . . . . 2 . . 11 3 . 2 . 2 . 7 Highest-Rated Group 362 | . . 85 85 . 20 10 10 . . 96 . . . . . . . . . 59 . . 362 134 . 130 . 130 . 98 Highest-Rated Ally 96 | . . 31 31 . 5 10 10 . . 96 . . . . . . . . . 30 . . 50 50 . 65 . 65 . 15 Total Orders 6 | . . . . . . . . . . . . . . . . . . . . . . . . . . . 6 . . . FOLLOW 1 | . . . . . . . . . . . . . . . . . . . . . . . . . . . 1 . . . RETURN 5 | . . . . . . . . . . . . . . . . . . . . . . . . . . . 5 . . . Ally Attacks 247 | . . . 94 . 14 . . . . 9 . . . . . . . . . . . . 51 5 . . . . . 74 Total Damage 6116 | . . . 1088 . 74 . . . . 236 . . . . . . . . . . . . 2687 254 . . . . . 1777 Kills 33 | . . . 14 . 1 . . . . 2 . . . . . . . . . . . . 9 1 . . . . . 6 Allies Corrupted 2 | . . . . . . . . . . . . . . . . . . . . . . . . . . . . 1 . 1 Allies Melted 1 | . . . . . . . . 1 . . . . . . . . . . . . . . . . . . . . . . Intel | -11 -10 -10 -10 -8 -8 -7 -7 -7 -7 -6 -6 -6 -6 -6 -6 -6 -6 -5 -5 -5 -5 -5 -4 -4 -4 -4 -3 -3 -2 -1 ------- Run | Jun Mat Min Sub Mat Gar Fac Low Low Dat Pro Fac Was Fac Low Low Zio Dee Pro Fac Upp Upp Zhi Pro Fac Arm Lab Res Tes Res Acc Robot Analysis Total 4 | . . . . . . . . . . . . . . . . . . . . . . 4 . . . . . . . . Derelict Logs Recovered 19 | . . 2 3 . . . 1 1 . 1 . . . . . 2 . 2 . 1 3 . 3 . . . . . . . Drone Launches 6 | . . . . . . . . . . . . . . . . . . . . . . . . . . . 6 . . . Drone Recoveries 5 | . . . . . . . . . . . . . . . . . . . . . . . . . . . 5 . . . Exploration | -11 -10 -10 -10 -8 -8 -7 -7 -7 -7 -6 -6 -6 -6 -6 -6 -6 -6 -5 -5 -5 -5 -5 -4 -4 -4 -4 -3 -3 -2 -1 ------------- Run | Jun Mat Min Sub Mat Gar Fac Low Low Dat Pro Fac Was Fac Low Low Zio Dee Pro Fac Upp Upp Zhi Pro Fac Arm Lab Res Tes Res Acc Turns Passed 79637 | 238 2855 2062 6566 2220 2492 1179 2370 2208 197 2360 2734 1186 2224 1216 863 10874 3661 2951 3876 3784 3470 474 5288 2226 2878 1553 1204 1541 794 2093 Spaces Moved 23227 | 167 913 631 1914 729 848 445 965 895 83 969 828 346 782 493 322 1220 1147 1044 1341 1051 965 168 1530 591 617 273 236 349 135 1230 Core 257 | 8 . . . . . . . . . . . . . . . 128 . . . . . . . . . . . 33 12 76 Treads 12978 | 10 913 631 1914 729 848 445 965 895 83 969 828 346 782 493 322 1092 710 . . . . . . . . . 1 1 1 . Legs 9552 | . . . . . . . . . . . . . . . . . 389 1044 1341 1051 965 168 1530 591 617 273 235 315 113 920 Wheels 197 | 149 . . . . . . . . . . . . . . . . 48 . . . . . . . . . . . . . Hover 9 | . . . . . . . . . . . . . . . . . . . . . . . . . . . . . 9 . Flight 234 | . . . . . . . . . . . . . . . . . . . . . . . . . . . . . . 234 Fastest Speed 31 | 50 160 320 320 242 240 240 240 240 240 240 240 240 240 240 240 240 186 229 186 235 235 269 226 226 270 240 240 50 50 31 Average Speed 262 | 96 271 320 327 246 240 240 240 240 240 240 248 246 240 240 240 561 237 229 229 243 248 269 258 269 270 274 292 253 166 102 Slowest Speed 3300 | 160 320 320 340 340 242 240 240 240 240 240 330 340 240 240 240 3300 320 229 240 298 269 269 269 270 390 390 385 390 235 185 Overloaded Moves . | . . . . . . . . . . . . . . . . . . . . . . . . . . . . . . . Propulsion Burnouts . | . . . . . . . . . . . . . . . . . . . . . . . . . . . . . . . Robots Hopped 10 | . . . . . . . . . . . . . . . . . . . . . . . . . . . . . . 10 Cave-ins Triggered . | . . . . . . . . . . . . . . . . . . . . . . . . . . . . . . . Teleports 2 | . . . . . . . . . . . . . . . . . . . . . . . . . 1 . . 1 . . Exploration Rate (%) 63 | 9 98 99 95 51 66 17 96 93 69 96 27 99 21 63 60 80 75 99 46 96 98 62 90 17 40 95 16 56 3 39 Regions Visited 30 Branch Regions 18 Pre-discovered Areas 11 | . . 1 2 . . . . 1 1 . . . . . . . . 1 . . 1 3 1 . . . . . . . Known Exits Taken 6 | . . . . 1 . . . . . 1 . . 1 . . . . . . . . . 1 1 . . 1 . . . Unknown Exits Taken 21 | 1 1 1 1 . . 1 1 1 1 . . . . 1 1 1 1 1 1 1 1 1 . . 1 1 . 1 1 . Scrap Searched 35 | . . 1 4 . . . 5 2 . 1 . . . 2 1 2 . 5 . 5 3 . 4 . . . . . . . Spaces Dug 203 | . 10 . 17 7 9 . 10 . . . 1 9 . . . 10 16 4 26 4 4 . 3 23 20 . 2 2 . 26 Terrain Destroyed 1086 | . 17 . 20 55 21 14 25 . . . 1 11 . . 26 12 93 17 209 37 62 . 19 69 70 . 59 112 4 133 Melee 24 | . . . 13 2 3 . . . . . 1 . . . . 1 1 . . . . . . . . . . . . 3 Projectile 529 | . 5 . 7 25 2 . 3 . . . . 11 . . . 1 4 17 96 37 35 . 19 56 69 . 41 30 4 67 AOE 532 | . 12 . . 28 15 14 22 . . . . . . . 26 10 88 . 113 . 27 . . 13 1 . 18 82 . 63 Terrain Rammed . | . . . . . . . . . . . . . . . . . . . . . . . . . . . . . . . Walls Destroyed . | . . . . . . . . . . . . . . . . . . . . . . . . . . . . . . . Machines Disabled . | . . . . . . . . . . . . . . . . . . . . . . . . . . . . . . . Actions | -11 -10 -10 -10 -8 -8 -7 -7 -7 -7 -6 -6 -6 -6 -6 -6 -6 -6 -5 -5 -5 -5 -5 -4 -4 -4 -4 -3 -3 -2 -1 --------- Run | Jun Mat Min Sub Mat Gar Fac Low Low Dat Pro Fac Was Fac Low Low Zio Dee Pro Fac Upp Upp Zhi Pro Fac Arm Lab Res Tes Res Acc Total 37083 | 202 1156 674 2063 981 1136 534 995 921 82 983 1280 560 996 517 389 3474 2019 1560 1843 2231 2000 194 2737 1072 1641 1024 529 844 649 1797 Wait 8719 | . 121 24 17 61 61 35 . 6 . . 263 56 83 4 51 549 688 486 259 1081 968 10 960 344 808 645 106 317 457 259 Move 23182 | 166 912 630 1913 729 847 444 964 894 82 968 828 345 782 492 321 1219 1146 1043 1340 1050 964 167 1529 590 616 272 235 348 134 1212 Hop 8 | . . . . . . . . . . . . . . . . . . . . . . . . . . . . . . 8 Pick Up 311 | 8 23 7 12 29 23 10 4 3 . 1 11 14 15 5 . 11 31 . 19 6 4 3 2 3 9 13 13 11 6 15 Fast Attach 241 | 7 2 . 1 3 8 3 2 . . 2 11 3 13 1 . 16 8 . 12 8 6 4 20 15 28 12 6 7 10 33 Attach 114 | . 1 . 3 9 10 3 . 1 . 1 12 3 11 2 1 3 14 . 6 . . 1 1 2 3 1 7 8 1 10 Detach 46 | . . . . 1 2 1 . . . . 3 2 1 . . 3 4 . 3 1 1 . . 3 4 1 4 4 1 7 Swap 210 | . 15 4 16 24 16 11 3 . . . 16 5 5 6 4 17 18 . 8 2 5 . 1 3 2 3 7 7 2 10 Drop 563 | . 10 7 13 28 21 12 6 2 . 2 24 20 17 3 . 22 53 5 37 21 19 9 32 24 54 32 16 21 9 44 Fire 3365 | 21 71 1 60 92 71 15 16 15 . 9 106 112 68 . 12 1633 34 26 159 37 33 . 70 86 117 45 133 120 24 179 Melee 114 | . . . 28 2 39 . . . . . 2 . . 4 . 1 20 . . . . . . . . . . . . 18 Ram . | . . . . . . . . . . . . . . . . . . . . . . . . . . . . . . . Kick 10 | . . . . . . . . . . . . . . . . . . . . . . . . 2 . . 2 . 4 2 Crush 11 | . 1 1 . 3 . . . . . . 4 . 1 . . . . . . . . . . . . . . . 1 . Escape Stasis 13 | . . . . . 12 . . . . . . . . . . . . . . . . . . . . . . 1 . . Rewire 176 | . . . . . 26 . . . . . . . . . . . 3 . . 25 . . 122 . . . . . . . Trap . | . . . . . . . . . . . . . . . . . . . . . . . . . . . . . . . Miscellaneous . | . . . . . . . . . . . . . . . . . . . . . . . . . . . . . . . Route ------- -11/Junkyard -10/Materials (discovered 6 exits: [*Mat x3] / [*Min x2] / *Sub) -10/Mines (discovered 3 exits: [*Mat x2] / *Sub) -10/Subcaves (discovered 3 exits: *Mat x2 / [*Rec]) -8/Materials (discovered 4 exits: *Fac x3 / Gar) -8/Garrison (discovered 3 exits: *Fac x3) -7/Factory (discovered 5 exits: Fac x4 / *Low) -7/Lower Caves -7/Lower Caves (discovered 2 exits: *Fac / *Dat) -7/Data Miner -6/Proximity Caves -6/Factory (discovered 4 exits: *Fac x2 / *Low / *Ext) -6/Waste -6/Factory (discovered 4 exits: *Low x2 / *Ext x2) -6/Lower Caves -6/Lower Caves -6/Zion (discovered 2 exits: [*Dee] / [*Pro]) -6/Deep Caves -5/Proximity Caves -5/Factory (discovered 5 exits: *Fac x4 / [*Upp]) -5/Upper Caves -5/Upper Caves (discovered 2 exits: *Fac / *Zhi) -5/Zhirov -4/Proximity Caves -4/Factory (discovered 3 exits: Upp x2 / *Arm) -4/Armory -4/Lab -3/Research (discovered 2 exits: *Tes x2) -3/Testing -2/Research -1/Access History --------- Turn | Location | Event 32 | -11/Junkyard | Discovered new exit (range 16) 239 | -11/Junkyard | Entered Materials 329 | -10/Materials | Build established: Mutant 607 | -10/Materials | Discovered new exit (range 16) 799 | -10/Materials | Discovered new exit (range 14) 885 | -10/Materials | Discovered new exit (range 16) 995 | -10/Materials | Discovered new exit (range 9) 1868 | -10/Materials | Discovered new exit (range 9) 2457 | -10/Materials | Discovered new exit (range 15) 2568 | -10/Materials | Central database locked down 3094 | -10/Materials | Entered Mines 3216 | -10/Mines | Learned 4 Materials zone layouts 3404 | -10/Mines | Discovered new exit (range 6) 3605 | -10/Mines | Assisted by bots powering up and referring to "LRC-V3" 3807 | -10/Mines | Learned Materials non-interactive machine intel 3864 | -10/Mines | Found a damaged Exp. Sensor Array with a note attached 3871 | -10/Mines | Found Prototype Device 3905 | -10/Mines | Learned location of Storage (-9) 4009 | -10/Mines | A weapon hastily lodged in a ceiling crevice suddenly fell to the ground 4160 | -10/Mines | Discovered new exit (range 13) 4600 | -10/Mines | Found a hidden stash of uninstalled traps 5129 | -10/Mines | Discovered new exit (range 6) 5156 | -10/Mines | Entered Subcaves 5156 | -10/Subcaves | Accompanied by 5 allies 5161 | -10/Subcaves | Led the pair of lost Derelicts to an unsafe place 5275 | -10/Subcaves | Discovered new exit (range 11) 5318 | -10/Subcaves | Shifting Twisted Machinery released Sub. Power Source 5981 | -10/Subcaves | Shifting Twisted Machinery released Sub. Monowheel 6650 | -10/Subcaves | Visited Clippyterm 6916 | -10/Subcaves | Disturbed a concealed Subdweller 6990 | -10/Subcaves | Learned location of Zion (-6) 7060 | -10/Subcaves | A Subdweller sparked back to life 7060 | -10/Subcaves | A Subdweller sparked back to life 7060 | -10/Subcaves | A Subdweller sparked back to life 7086 | -10/Subcaves | Found Prototype Leg 8095 | -10/Subcaves | Discovered new exit (range 9) 8343 | -10/Subcaves | A swath of the cavern ceiling suddenly collapsed 8507 | -10/Subcaves | Discovered new exit (range 5) 8620 | -10/Subcaves | Core integrity fell below 50% 9894 | -10/Subcaves | Learned 4 Materials zone layouts 10533 | -10/Subcaves | A swath of the cavern ceiling suddenly collapsed 10589 | -10/Subcaves | Build established: Subdweller-Mutant 11485 | -10/Subcaves | Ambushed by angry Subdweller bent on revenge 11722 | -10/Subcaves | Entered Materials 11722 | -8/Materials | Evolved 4 slots: Propulsion x2, Utility x2 11723 | -8/Materials | Identified exit to Factory 11724 | -8/Materials | Loaded intel: 45 non-interactive machine locations 12259 | -8/Materials | Identified Exp. Sensor Array 12455 | -8/Materials | Build established: Derelict-Mutant 12543 | -8/Materials | Garrison activated, responded to threat 12547 | -8/Materials | Lost 3 parts (1n1u1w) 13013 | -8/Materials | Discovered exit to Factory (range 16) 13347 | -8/Materials | Build established: Mutant 13942 | -8/Materials | Identified exit to Garrison 13942 | -8/Materials | Entered Garrison 14156 | -8/Garrison | Triggered checkpoint 14208 | -8/Garrison | Garrison Relay disabled 14360 | -8/Garrison | Triggered checkpoint 14416 | -8/Garrison | Triggered checkpoint 14450 | -8/Garrison | Lost 3 parts (1n1u1w) 14455 | -8/Garrison | Destroyed 11 combat bots 14538 | -8/Garrison | Discovered exit to Factory (range 10) 14586 | -8/Garrison | Triggered checkpoint 14654 | -8/Garrison | Garrison Relay disabled 14693 | -8/Garrison | Lost 3 parts (2n1w) 14704 | -8/Garrison | Build established: Scavenger-Mutant 15138 | -8/Garrison | Installed Relay Interface Framework 15244 | -8/Garrison | Discovered exit to Factory (range 12) 15378 | -8/Garrison | Triggered checkpoint 15500 | -8/Garrison | Garrison Relay disabled 15789 | -8/Garrison | Spotted B-75 Beast 15858 | -8/Garrison | Destroyed B-75 Beast 16073 | -8/Garrison | Discovered exit to Factory (range 8) 16196 | -8/Garrison | Triggered checkpoint 16434 | -8/Garrison | Entered Factory 16434 | -7/Factory | Evolved 2 slots: Power x1, Utility x1 17350 | -7/Factory | Identified exit to Factory 17543 | -7/Factory | Identified Cargo Legs 17572 | -7/Factory | Discovered new exit (range 15) 17613 | -7/Factory | Entered Lower Caves 17613 | -7/Lower Caves | Accompanied by 1 ally 18543 | -7/Lower Caves | Learned Factory interactive machine intel 19388 | -7/Lower Caves | Discovered new exit (range 5) 19983 | -7/Lower Caves | Entered another Lower Caves area 20157 | -7/Lower Caves | Attracted the attention of an 0b10 checkpoint 20234 | -7/Lower Caves | Discovered exit to Factory (range 8) 21576 | -7/Lower Caves | Discovered new exit (range 15) 22191 | -7/Lower Caves | Entered Data Miner 22191 | -7/Data Miner | Discovered new exit (range 6) 22237 | -7/Data Miner | Met Data Miner 22283 | -7/Data Miner | Learned location of Section 7 (-2) 22283 | -7/Data Miner | Acquired the access code to Warlord's prototype stash 22328 | -7/Data Miner | Received God Mode back door access code from Data Miner 22388 | -7/Data Miner | Entered Proximity Caves 22589 | -6/Proximity Caves | Spotter reported a threat 22594 | -6/Proximity Caves | Escorted by Enhanced Grunt 22702 | -6/Proximity Caves | Spotter reported a threat 24286 | -6/Proximity Caves | Spotted B-75 Beast 24321 | -6/Proximity Caves | Destroyed B-75 Beast 24337 | -6/Proximity Caves | Found Prototype Device 24337 | -6/Proximity Caves | Identified Exp. Thermal Shield 24405 | -6/Proximity Caves | Discovered exit to Factory (range 15) 24585 | -6/Proximity Caves | Learned Factory emergency access door positions 24748 | -6/Proximity Caves | Entered Factory 24748 | -6/Factory | Evolved 2 slots: Utility x2 24750 | -6/Factory | Loaded intel: 53 interactive machine locations 24960 | -6/Factory | Discovered new exit (range 15) 25511 | -6/Factory | Discovered new exit (range 13) 25983 | -6/Factory | Found Rocket Array 26590 | -6/Factory | Fabricated Cargo Storage Unit (x1) 26615 | -6/Factory | Discovered new exit (range 16) 26706 | -6/Factory | Discovered new exit (range 16) 26937 | -6/Factory | Build established: Hauler-Mutant 27025 | -6/Factory | Lost 3 parts (2n1u) 27482 | -6/Factory | Sucked down chute 27482 | -6/Factory | Entered Waste 27497 | -6/Waste | EMP discharged 27497 | -6/Waste | System corruption reached 10% 27500 | -6/Waste | Found Corrupted Prototype Hackware 27551 | -6/Waste | Spotted C-40 Crusher 27556 | -6/Waste | Spotted C-40 Crusher 27560 | -6/Waste | Spotted C-40 Crusher 27567 | -6/Waste | Spotted C-40 Crusher 27580 | -6/Waste | Spotted C-40 Crusher 27597 | -6/Waste | EMP discharged 27599 | -6/Waste | Destroyed C-40 Crusher 27624 | -6/Waste | Found Damper Plating 27678 | -6/Waste | Spotted C-40 Crusher 27697 | -6/Waste | EMP discharged 27786 | -6/Waste | Destroyed C-40 Crusher 27797 | -6/Waste | EMP discharged 27824 | -6/Waste | Destroyed C-40 Crusher 27857 | -6/Waste | Found Damper Plating 27897 | -6/Waste | EMP discharged 27899 | -6/Waste | Destroyed C-40 Crusher 27997 | -6/Waste | EMP discharged 28097 | -6/Waste | EMP discharged 28125 | -6/Waste | Destroyed C-40 Crusher 28197 | -6/Waste | EMP discharged 28260 | -6/Waste | Destroyed C-40 Crusher 28297 | -6/Waste | EMP discharged 28356 | -6/Waste | Discovered new exit (range 11) 28397 | -6/Waste | EMP discharged 28497 | -6/Waste | EMP discharged 28597 | -6/Waste | EMP discharged 28668 | -6/Waste | Entered Factory 29525 | -6/Factory | Cargo convoy interrupted 29573 | -6/Factory | Build established: Scavenger-Mutant 29676 | -6/Factory | Discovered new exit (range 16) 30007 | -6/Factory | Identified Exp. System Shield 30544 | -6/Factory | Identified exit to Lower Caves 30544 | -6/Factory | Identified exit to Extension 30892 | -6/Factory | Entered Lower Caves 31560 | -6/Lower Caves | Build established: Hauler-Mutant 32077 | -6/Lower Caves | Discovered new exit (range 12) 32108 | -6/Lower Caves | Entered another Lower Caves area 32232 | -6/Lower Caves | Attracted the attention of an 0b10 checkpoint 32423 | -6/Lower Caves | Spotted B-75 Beast 32865 | -6/Lower Caves | Discovered new exit (range 14) 32881 | -6/Lower Caves | Ambushed by wild Derelicts 32971 | -6/Lower Caves | Entered Zion 33054 | -6/Zion | System corruption cleaned by Quarantine Array 33116 | -6/Zion | Acquired unknown access codes intercepted by a Zionite 33138 | -6/Zion | Discovered new exit (range 10) 37729 | -6/Zion | RIF detected upon attempting to enter Zion 37729 | -6/Zion | Attacked by Zionites 37732 | -6/Zion | Spotted 8Y-KHG(B) 37743 | -6/Zion | Destroyed 8Y-KHG(B) 37768 | -6/Zion | Spotted X6-1C7(B) 37801 | -6/Zion | Destroyed X6-1C7(B) 38073 | -6/Zion | Destroyed Imprinter 38099 | -6/Zion | Extracted access codes from Imprinter's data core 39933 | -6/Zion | Learned location of 1 exit from Lower Caves 42662 | -6/Zion | Found Prototype Device 42662 | -6/Zion | Identified Mobile Refinery Mk. CCLXVII 43019 | -6/Zion | Build established: Scavenger-Mutant 43210 | -6/Zion | Found GAL Module 43390 | -6/Zion | Opened final containment barrier to the Deep Caves 43426 | -6/Zion | Discovered new exit (range 3) 43426 | -6/Zion | Saw the warning signs outside the Deep Caves entrance 43845 | -6/Zion | Entered Deep Caves 44198 | -6/Deep Caves | Z-Facility disabled 44256 | -6/Deep Caves | Found Prototype Protection 44256 | -6/Deep Caves | Identified Zio. Heavy Carapace 44320 | -6/Deep Caves | Found Prototype Protection 44321 | -6/Deep Caves | Identified Zio. Weapon Casing 44517 | -6/Deep Caves | Found Zio. Weapon Casing 44616 | -6/Deep Caves | Build established: Hauler-Mutant 44960 | -6/Deep Caves | Discovered new exit (range 6) 45422 | -6/Deep Caves | Spotted as-42127 45449 | -6/Deep Caves | Destroyed as-42127 45462 | -6/Deep Caves | Found GOLEM Unit 45539 | -6/Deep Caves | Spotted as-78914 45576 | -6/Deep Caves | Core integrity fell below 50% 45582 | -6/Deep Caves | Destroyed as-78914 45596 | -6/Deep Caves | Found GOLEM Unit 45750 | -6/Deep Caves | Triggered Deep Caves wall 45750 | -6/Deep Caves | Spotted AS-64460 45752 | -6/Deep Caves | Exposed GOLEM chamber 45756 | -6/Deep Caves | Destroyed AS-64460 45761 | -6/Deep Caves | Spotted AS-27183 45766 | -6/Deep Caves | Destroyed AS-27183 45789 | -6/Deep Caves | Destroyed 37 combat bots 45833 | -6/Deep Caves | Found GOLEM Unit 45957 | -6/Deep Caves | Attached Cargo Legs, gained temporary slots: Utility x2 46654 | -6/Deep Caves | Found GOLEM Unit 46659 | -6/Deep Caves | Found GOLEM Unit 46666 | -6/Deep Caves | Found GOLEM Unit 46672 | -6/Deep Caves | Found GOLEM Unit 46677 | -6/Deep Caves | Found GOLEM Unit 46680 | -6/Deep Caves | Found GOLEM Unit 46799 | -6/Deep Caves | Build established: Hauler-Golem 47255 | -6/Deep Caves | Found GOLEM Unit 47260 | -6/Deep Caves | Found GOLEM Unit 47266 | -6/Deep Caves | Found GOLEM Unit 47271 | -6/Deep Caves | Found GOLEM Unit 47286 | -6/Deep Caves | Found GOLEM Unit 47506 | -6/Deep Caves | Entered Proximity Caves 47539 | -5/Proximity Caves | Learned Factory terminal intel 48004 | -5/Proximity Caves | Ambushed by research squad 48367 | -5/Proximity Caves | Discovered new exit (range 12) 50457 | -5/Proximity Caves | Entered Factory 50457 | -5/Factory | Evolved 2 slots: Power x1, Weapon x1 50458 | -5/Factory | Loaded intel: 25 terminal locations 51375 | -5/Factory | Discovered new exit (range 16) 51428 | -5/Factory | Identified exit to Factory 52161 | -5/Factory | Incoming investigation squad redirected 52183 | -5/Factory | Fabricated Cargo Storage Unit (x1) 53457 | -5/Factory | First assault squad dispatched 53764 | -5/Factory | Lost 3 parts (3u) 53779 | -5/Factory | Incoming assault squad redirected 54004 | -5/Factory | Destroyed 16 combat bots 54102 | -5/Factory | Garrison activated, responded to threat 54114 | -5/Factory | Incoming assault squad redirected 54116 | -5/Factory | Incoming assault squad redirected 54132 | -5/Factory | Spotted B-75 Beast 54177 | -5/Factory | High security lockdown imminent 54210 | -5/Factory | Destroyed 10 combat bots 54215 | -5/Factory | Lost 5 parts (1p1n2u1w) 54257 | -5/Factory | High security lockdown engaged 54297 | -5/Factory | Discovered new exit (range 15) 54333 | -5/Factory | Entered Upper Caves 55766 | -5/Upper Caves | Learned Factory terminal intel 55998 | -5/Upper Caves | Attracted the attention of an 0b10 outpost 56055 | -5/Upper Caves | Destroyed 7 combat bots 56379 | -5/Upper Caves | Attracted the attention of an 0b10 checkpoint 56731 | -5/Upper Caves | Discovered new exit (range 12) 58117 | -5/Upper Caves | Entered another Upper Caves area 58325 | -5/Upper Caves | Discovered exit to Factory (range 13) 58377 | -5/Upper Caves | Learned location of Warlord (-4) 59203 | -5/Upper Caves | Found Alien Artifact 59368 | -5/Upper Caves | Learned Factory terminal intel 59794 | -5/Upper Caves | Encountered a Warlord checkpoint 59815 | -5/Upper Caves | Learned Factory emergency access door positions 61031 | -5/Upper Caves | Found Imp. Powered Armor 61323 | -5/Upper Caves | Discovered new exit (range 7) 61587 | -5/Upper Caves | Entered Zhirov 61587 | -5/Zhirov | Discovered new exit (range 3) 61636 | -5/Zhirov | Met Zhirov 61687 | -5/Zhirov | Learned location of Quarantine (-2) 61687 | -5/Zhirov | Learned location of Command (-1) 61687 | -5/Zhirov | Learned location of Testing (-3) 61738 | -5/Zhirov | Zhirov requested help retrieving the SGEMP Prototype 61784 | -5/Zhirov | Found Alien Artifact 61784 | -5/Zhirov | Identified Integrated Dissipator 61784 | -5/Zhirov | Installed Integrated Dissipator, increased core heat dissipation (+20) 61936 | -5/Zhirov | Found Alien Artifact 62061 | -5/Zhirov | Entered Proximity Caves 62110 | -4/Proximity Caves | P-70 Sage assimilated allied B5-TEH(S) 63122 | -4/Proximity Caves | Attracted the attention of an 0b10 checkpoint 63870 | -4/Proximity Caves | Core integrity fell below 50% 63969 | -4/Proximity Caves | Spotted B-86 Titan 63978 | -4/Proximity Caves | Destroyed B-86 Titan 64836 | -4/Proximity Caves | Snuck into a huge 0b10 base via the rear entrance 66060 | -4/Proximity Caves | Spotted B-86 Titan 67349 | -4/Proximity Caves | Entered Factory 67349 | -4/Factory | Accompanied by 3 allies 67349 | -4/Factory | Evolved 2 slots: Utility x2 67351 | -4/Factory | Loaded intel: 26 terminal locations 68509 | -4/Factory | Spotted B-86 Titan 68548 | -4/Factory | Destroyed B-86 Titan 69313 | -4/Factory | Identified exit to Upper Caves 69313 | -4/Factory | Identified exit to Armory 69575 | -4/Factory | Entered Armory 69576 | -4/Armory | Met VL-GR5, who suggested a friendly competition 69689 | -4/Armory | Found Unknown Launcher 69689 | -4/Armory | Identified Fusion Bomb Launcher 69723 | -4/Armory | Found Gamma Bomb Array 70481 | -4/Armory | Destroyed 7 combat bots 71136 | -4/Armory | Spotted B-86 Titan 71327 | -4/Armory | Destroyed B-86 Titan 71679 | -4/Armory | System corruption reached 10% 71837 | -4/Armory | Fabricated Cargo Storage Unit? 72325 | -4/Armory | First assault squad dispatched 72339 | -4/Armory | Identified Transdimensional Reconstructor 72339 | -4/Armory | Warped through subspace to slip node 72339 | -4/Armory | Discovered new exit (range 1) 72341 | -4/Armory | Found Unknown Device 72341 | -4/Armory | Identified Quantum Capacitor 72358 | -4/Armory | Incoming assault squad redirected 72453 | -4/Armory | Entered Lab 72582 | -4/Lab | Discovered new exit (range 9) 72618 | -4/Lab | Unable to decrypt terminal 72618 | -4/Lab | Opened the door to a hidden lab 72619 | -4/Lab | Gained access to the hidden lab's interior 72657 | -4/Lab | Found Alien Artifact 72657 | -4/Lab | Identified Core Reset Matrix 72657 | -4/Lab | Used Core Reset Matrix 72661 | -4/Lab | Sensed 3 artifacts in vicinity 72710 | -4/Lab | Detected by scanners 72719 | -4/Lab | Confronted by A5 72780 | -4/Lab | Destroyed A5 72818 | -4/Lab | Found Integrated Mediator 72818 | -4/Lab | Installed Integrated Mediator, increased core attachment efficiency. 72835 | -4/Lab | Found Core Expander 72835 | -4/Lab | Installed Core Expander, added new Utility slot 72880 | -4/Lab | Found Prototype Protection 72880 | -4/Lab | Identified Med. Regenerative Plating 72887 | -4/Lab | Found Prototype Energy Cannon 72887 | -4/Lab | Identified Warp Cannon 73361 | -4/Lab | Found Warp Cannon 73379 | -4/Lab | Found Prototype Hackware 73447 | -4/Lab | Found Transdimensional Reconstructor 73602 | -4/Lab | Discovered new exit (range 8) 74006 | -4/Lab | Entered Research 74006 | -3/Research | Evolved 2 slots: Power x1, Utility x1 74142 | -3/Research | Identified exit to Testing 74234 | -3/Research | Spotted B-86 Titan 74283 | -3/Research | Destroyed B-86 Titan 74327 | -3/Research | Build established: Generator-Golem 74667 | -3/Research | Destroyed 11 combat bots 74784 | -3/Research | First assault squad dispatched 74812 | -3/Research | Incoming assault squad redirected 74879 | -3/Research | System corruption reached 10% 75116 | -3/Research | Lost 4 parts (2p2u) 75210 | -3/Research | Entered Testing 75895 | -3/Testing | Found Prototype Energy Cannon 75923 | -3/Testing | Scanned by Researcher 76086 | -3/Testing | Destroyed 8 combat bots 76238 | -3/Testing | Discovered new exit (range 15) 76286 | -3/Testing | Incoming investigation squad redirected 76286 | -3/Testing | Incoming assault squad redirected 76364 | -3/Testing | Destroyed 12 combat bots 76483 | -3/Testing | Found Prototype Energy Gun 76548 | -3/Testing | Intercept squad dispatched 76552 | -3/Testing | Spotted Tracker 76552 | -3/Testing | Spotted Tracker 76561 | -3/Testing | Spotted Combat Programmer 76563 | -3/Testing | Spotted Combat Programmer 76564 | -3/Testing | Destroyed Tracker 76569 | -3/Testing | Destroyed Tracker 76614 | -3/Testing | Destroyed Combat Programmer 76670 | -3/Testing | System corruption reached 30% 76674 | -3/Testing | Warped through subspace 76675 | -3/Testing | Core integrity fell below 50% 76704 | -3/Testing | Lost 13 parts (3p2n5u3w) 76710 | -3/Testing | First assault squad dispatched 76732 | -3/Testing | Incoming assault squad redirected 76735 | -3/Testing | Released all parts (10) 76747 | -3/Testing | Core integrity fell below 20% 76750 | -3/Testing | Incoming assault squad redirected 76751 | -3/Testing | Entered Research 76751 | -2/Research | Evolved 2 slots: Utility x2 76765 | -2/Research | Lost 4 parts (1p1n1u1w) 77038 | -2/Research | Build established: Alien-Mutant 77285 | -2/Research | First assault squad dispatched 77306 | -2/Research | Incoming assault squad redirected 77404 | -2/Research | Destroyed 10 combat bots 77458 | -2/Research | Discovered new exit (range 15) 77545 | -2/Research | Entered Access 77545 | -1/Access | Evolved 2 slots: Utility x2 77625 | -1/Access | Build established: Generator-Golem 77795 | -1/Access | First assault squad dispatched 77820 | -1/Access | Incoming assault squad redirected 77947 | -1/Access | Spotted B-99 Colossus 78007 | -1/Access | Energy Cycler disabled 78115 | -1/Access | Destroyed 7 combat bots 78321 | -1/Access | Lost 8 parts (3p3u2w) 78336 | -1/Access | Found Exp. Thermal Shield 78376 | -1/Access | Intercept squad dispatched 78400 | -1/Access | Spotted Tracker 78400 | -1/Access | Spotted Tracker 78411 | -1/Access | Destroyed Tracker 78414 | -1/Access | Spotted Combat Programmer 78420 | -1/Access | Destroyed Tracker 78422 | -1/Access | Destroyed Combat Programmer 78442 | -1/Access | Found Prototype Device 78442 | -1/Access | Identified Exp. Phase Shifter 78452 | -1/Access | Spotted Combat Programmer 78459 | -1/Access | System corruption reached 10% 78467 | -1/Access | Destroyed Combat Programmer 78603 | -1/Access | Destroyed 13 combat bots 78607 | -1/Access | Lost 4 parts (1p2u1w) 78802 | -1/Access | Found Prototype Processor 78802 | -1/Access | Identified Exp. Melee Analysis Suite 78807 | -1/Access | Found Exp. Melee Analysis Suite 78892 | -1/Access | Lost 4 parts (3u1w) 79067 | -1/Access | Incoming assault squad redirected 79070 | -1/Access | Incoming investigation squad redirected 79071 | -1/Access | Incoming assault squad redirected 79090 | -1/Access | Found Unknown Piercing Weapon 79385 | -1/Access | Intercept squad dispatched 79400 | -1/Access | Spotted Tracker 79400 | -1/Access | Spotted Tracker 79400 | -1/Access | Spotted Tracker 79403 | -1/Access | Destroyed Tracker 79418 | -1/Access | Destroyed Tracker 79427 | -1/Access | Destroyed Tracker 79428 | -1/Access | Spotted Combat Programmer 79441 | -1/Access | Spotted Combat Programmer 79443 | -1/Access | Destroyed Combat Programmer 79447 | -1/Access | Spotted Combat Programmer 79468 | -1/Access | Identified Enh. Force Lance 79484 | -1/Access | Core integrity fell below 50% 79499 | -1/Access | Emitted hypermatrix ping 79504 | -1/Access | Assembled emerged from beneath the floor 79505 | -1/Access | Allies destroyed Combat Programmer 79523 | -1/Access | Core integrity fell below 20% 79524 | -1/Access | Found Unknown Launcher 79524 | -1/Access | Identified Fusion Bomb Launcher 79551 | -1/Access | Lost 21 parts (3p3n13u2w) 79560 | -1/Access | Assembled emerged from beneath the floor 79567 | -1/Access | Incoming assault squad redirected 79588 | -1/Access | Garrison activated, responded to threat 79590 | -1/Access | Spotted B-99 Colossus 79590 | -1/Access | Spotted B-99 Colossus 79630 | -1/Access | Intercept squad dispatched 79636 | -1/Access | Spotted Tracker 79636 | -1/Access | Spotted Tracker 79637 | -1/Access | Spotted Tracker 79638 | -1/Access | Destroyed self with Fusion Bomb Launcher Last Messages --------------- 79601_ Destroyed Unknown Special Weapon. 79601_ U-05 Engineer destroyed. 79601_ G-73 Enforcer destroyed. 79602_ Lgt. Antimatter Reactor destroyed. 79603_ Destroyed Unknown Device. 79603_ G-73 Enforcer destroyed. 79608_ G K&FK1,>TWNH 79638_ U-05 Engineer destroyed. 79638_ Fusion Bomb Launcher destroyed. 79638_ Destroyed Fusion Bomb Launcher. Map ----- +----------------------------------------------------+ | ?????????????????????????????????????????????????? | | ?????????????????????????????????????????????????? | | ?????????????????????????????????????????????????? | | ?????????????????????????????????????????????????? | | ?????????????????????????????????????????????????? | | ?????????????????????????????????????????????????? | | ?????????????????????????????????????????????????? | | ?????????????????????????????????????????????????? | | ?????????????????????????????????????????????????? | | ?????????????????????????????????????????????????? | | ????????#????????????????????????????????????????? | | ??????# ????????????????????????????????????????? | | ??????# ???????????????????????????????????????? | | ??????# ???????????????????????????????????????? | | ??????# ??????????????????????????????????????? | | ??????# ??????????????????????????????????????? | | ??????# Y"#???????????????????????????????????? | | "?????# ""#???????????????????????????????????? | | ??????# ""#???????????????????????????????????? | | ??????# ""#???????????????????????????????????? | | ??????# #???????????????????????????????????? | | ??????# #???????????????????????????????????? | | ???????? ! #????????????????? ########?????????? | | ?????????? #?######???????? g ????????? | | ############/### [ ###### ????????? | | s g s@s = g ????????? | | k A= R s !%! g g ????????? | | ################ *##### ########???????????? | | ??????????????## ##????????????????????????????? | | ??????????????# #?????????????????????????????? | | #?????????????# #?????????????????????????????? | | #?????????????+ #?????????????????????????????? | | #?????????????# #?????????????????????????????? | | #?????????????# #?????????????????????????????? | | #?????????????# #?????????????????????????????? | | #?????????????# #?????????????????????????????? | | #?????????????# #?????????????????????????????? | | #?????????????# #?????????????????????????????? | | ? #?????????????# #?????????????????????????????? | | ? ??????????????# ??????????????????????????????? | | ?????????????????????????????????????????????????? | | ?????????????????????????????????????????????????? | | ?????????????????????????????????????????????????? | | ?????????????????????????????????????????????????? | | ?????????????????????????????????????????????????? | | ?????????????????????????????????????????????????? | | ?????????????????????????????????????????????????? | | ?????????????????????????????????????????????????? | | ?????????????????????????????????????????????????? | | ?????????????????????????????????????????????????? | +----------------------------------------------------+ Best States ------------- Heat Dissipation 174 Energy Generation 89 Energy Capacity 2430 Matter Stores 300 Matter Capacity 300 Sight Range 16 Terrain Scan Density 10 Jamming Range 14 Additional Mass Support 20 EM Shielding 3 Corruption Block 15 Armor Coverage 3200 Resistance: KI 30 Resistance: TH 30 Resistance: EX 15 Resistance: EM 90 Resistance: I 15 Resistance: S 15 Resistance: P 15 Core Shielding 30 Propulsion Shielding 66 Weapon Shielding 100 Weapon Cycling 25 Phase Shifting 20 Evasion (%) 75 Targeting Accuracy 8 Melee Accuracy 24 Target Analysis 9 Core Analysis 8 Recoil Reduction 4 Energy Filtering 50 Offensive Hacking 14 Defensive Hacking 14 Relay Coupler Types 1 Relay Coupler Value 29 Authchip Count 2 Item Schematics ----------------- Exp. Thermal Shield | -3/Testing | Archive Adv. Gravity Neutralizer | -3/Testing | Archive Robot Schematics ------------------ None Fabricated ------------ Cargo Storage Unit | x1 | -6/Factory Cargo Storage Unit | x1 | -5/Factory Cargo Storage Unit | x1 | -4/Armory | Authchip Alien Tech Used ----------------- Integrated Dissipator Transdimensional Reconstructor Core Reset Matrix Integrated Mediator Core Expander Achievements -------------- Full Golem Challenges ------------ None Game ------ Seed SchematicHardenedAutogun Manual? 0 Play Time 08:52:49 Cumulative 592.2 hours Start 2023.09.22 @ 21:11:33 End 2023.11.05 @ 16:07:20 Sessions 7 Manual Loads 0 Difficulty Rogue Special Mode None Game No. 394 Rogue 394 Adventurer 0 Explorer 0 Win Type - Total 18 Types 9/3/2/0/0/1/2/1/0 Lore% 83 Gallery% 91 Achievement% 80 Wizard Run 0 Options --------- ASCII 0 Keyboard 0 Movement Numpad Keybinds 0 Fullscreen 1 Font 24/Terminus Map View 76x50 Tactical HUD 1 Map Filters NONE Filters NONE Steam 1 RUN: e89bcc7b-c75c-4472-aa70-c050d6846ee3